[Event "Early-Titled-Tuesday-Blitz-February-06-2024"]
[Site "Chess.com"]
[Date "2024.02.06"]
[Round "9"]
[White "Nf3c5"]
[Black "KorolDimitriy75"]
[Result "1-0"]
[WhiteElo "2550"]
[BlackElo "2374"]
[TimeControl "180+1"]
[EndTime "9:46:00 PST"]
[Termination "Nf3c5 won on time"]

1. d4 {[%clk 0:02:54.7]} 1... Nf6 {[%clk 0:02:58.6]} 2. Nf3 {[%clk 0:02:55.2]}
2... g6 {[%clk 0:02:58.3]} 3. Nbd2 {[%clk 0:02:53.6]} 3... c5 {[%clk 0:02:57.3]}
4. dxc5 {[%clk 0:02:50.8]} 4... Qa5 {[%clk 0:02:54.9]} 5. a3 {[%clk 0:02:46.6]}
5... Qxc5 {[%clk 0:02:47.5]} 6. b4 {[%clk 0:02:24.9]} 6... Qc7 {[%clk
0:02:47.3]} 7. Bb2 {[%clk 0:02:18]} 7... Bg7 {[%clk 0:02:47.9]} 8. c4 {[%clk
0:02:17.4]} 8... O-O {[%clk 0:02:47.5]} 9. e3 {[%clk 0:02:17.1]} 9... b6 {[%clk
0:02:39.9]} 10. Rc1 {[%clk 0:02:14.7]} 10... d6 {[%clk 0:02:35.7]} 11. Be2
{[%clk 0:02:12.5]} 11... Bb7 {[%clk 0:02:35.4]} 12. O-O {[%clk 0:02:12.4]} 12...
Nbd7 {[%clk 0:02:35.5]} 13. Qb3 {[%clk 0:02:12.3]} 13... Rac8 {[%clk 0:02:34.1]}
14. Rfd1 {[%clk 0:02:11]} 14... Qb8 {[%clk 0:02:33.9]} 15. Nd4 {[%clk
0:02:07.5]} 15... Qa8 {[%clk 0:02:32.6]} 16. Bf3 {[%clk 0:02:07.3]} 16... Ne5
{[%clk 0:02:07.6]} 17. Bxb7 {[%clk 0:02:03]} 17... Qxb7 {[%clk 0:02:08.5]} 18.
h3 {[%clk 0:01:57.2]} 18... Ne4 {[%clk 0:01:45.9]} 19. Nxe4 {[%clk 0:01:33.2]}
19... Qxe4 {[%clk 0:01:46.8]} 20. b5 {[%clk 0:01:28.5]} 20... Rc7 {[%clk
0:01:27.4]} 21. f3 {[%clk 0:01:20.5]} 21... Qh4 {[%clk 0:01:17.3]} 22. f4 {[%clk
0:01:18.4]} 22... Nd7 {[%clk 0:01:15.1]} 23. Nc6 {[%clk 0:01:14.8]} 23... Nc5
{[%clk 0:01:14.8]} 24. Qc2 {[%clk 0:01:14.6]} 24... Bxb2 {[%clk 0:01:03.3]} 25.
Qxb2 {[%clk 0:01:14.4]} 25... Qg3 {[%clk 0:00:52.2]} 26. Qf2 {[%clk 0:01:10.7]}
26... Qxf2+ {[%clk 0:00:45.9]} 27. Kxf2 {[%clk 0:01:11.6]} 27... f5 {[%clk
0:00:43]} 28. Kf3 {[%clk 0:01:07.4]} 28... Kf7 {[%clk 0:00:29.2]} 29. g4 {[%clk
0:01:03.4]} 29... Kf6 {[%clk 0:00:24]} 30. Nb4 {[%clk 0:00:51.4]} 30... Kg7
{[%clk 0:00:18.8]} 31. g5 {[%clk 0:00:29.6]} 31... Rfc8 {[%clk 0:00:16.6]} 32.
Nc6 {[%clk 0:00:27.7]} 32... Rxc6 {[%clk 0:00:16.8]} 33. bxc6 {[%clk 0:00:27.6]}
33... Rxc6 {[%clk 0:00:17.7]} 34. h4 {[%clk 0:00:24.8]} 34... Ne4 {[%clk
0:00:17.6]} 35. Rc2 {[%clk 0:00:21.9]} 35... Rc5 {[%clk 0:00:16.2]} 36. Rd5
{[%clk 0:00:19.6]} 36... Rc6 {[%clk 0:00:15.8]} 37. h5 {[%clk 0:00:19.2]} 37...
Kf7 {[%clk 0:00:15.3]} 38. hxg6+ {[%clk 0:00:18.1]} 38... hxg6 {[%clk
0:00:16.2]} 39. Rd4 {[%clk 0:00:18.2]} 39... Kg7 {[%clk 0:00:16.3]} 40. Rxe4
{[%clk 0:00:16.7]} 40... fxe4+ {[%clk 0:00:15.9]} 41. Kxe4 {[%clk 0:00:17.6]}
41... b5 {[%clk 0:00:13.4]} 42. Kd5 {[%clk 0:00:16.5]} 42... Rc5+ {[%clk
0:00:13.5]} 43. Kd4 {[%clk 0:00:16.9]} 43... e5+ {[%clk 0:00:11.9]} 44. Kd3
{[%clk 0:00:14.4]} 44... exf4 {[%clk 0:00:11.3]} 45. exf4 {[%clk 0:00:15.3]}
45... bxc4+ {[%clk 0:00:07.2]} 46. Rxc4 {[%clk 0:00:16.2]} 46... Ra5 {[%clk
0:00:07.4]} 47. a4 {[%clk 0:00:16.4]} 47... Kf7 {[%clk 0:00:07]} 48. Ke3 {[%clk
0:00:14.7]} 48... Ke6 {[%clk 0:00:07.2]} 49. Re4+ {[%clk 0:00:14.3]} 49... Kf5
{[%clk 0:00:07.4]} 50. Rb4 {[%clk 0:00:13.7]} 50... d5 {[%clk 0:00:07.4]} 51.
Kf3 {[%clk 0:00:13.5]} 51... a6 {[%clk 0:00:05.6]} 52. Rd4 {[%clk 0:00:13.6]}
52... Ke6 {[%clk 0:00:05.4]} 53. Rb4 {[%clk 0:00:13.3]} 53... Kd6 {[%clk
0:00:05.5]} 54. Rb6+ {[%clk 0:00:13.4]} 54... Kc5 {[%clk 0:00:06]} 55. Rxg6
{[%clk 0:00:13.9]} 55... Rxa4 {[%clk 0:00:06.9]} 56. Rg8 {[%clk 0:00:13.5]}
56... Ra3+ {[%clk 0:00:06.6]} 57. Kg4 {[%clk 0:00:13.9]} 57... d4 {[%clk
0:00:06.3]} 58. g6 {[%clk 0:00:14.2]} 58... Ra1 {[%clk 0:00:06.3]} 59. Kf5
{[%clk 0:00:13.1]} 59... Rg1 {[%clk 0:00:06]} 60. Rd8 {[%clk 0:00:12.2]} 60...
Kc4 {[%clk 0:00:05.2]} 61. Kf6 {[%clk 0:00:12.3]} 61... d3 {[%clk 0:00:05.4]}
62. g7 {[%clk 0:00:12.6]} 62... Kc3 {[%clk 0:00:04.4]} 63. g8=Q {[%clk
0:00:12.8]} 63... Rxg8 {[%clk 0:00:04.4]} 64. Rxg8 {[%clk 0:00:13.7]} 64... d2
{[%clk 0:00:05]} 65. Rc8+ {[%clk 0:00:14.3]} 65... Kd4 {[%clk 0:00:04.7]} 66.
Rd8+ {[%clk 0:00:15.2]} 66... Ke3 {[%clk 0:00:05]} 67. f5 {[%clk 0:00:15]} 67...
Ke2 {[%clk 0:00:03.8]} 68. Kg6 {[%clk 0:00:15.1]} 68... d1=Q {[%clk 0:00:04.3]}
69. Rxd1 {[%clk 0:00:15.3]} 69... Kxd1 {[%clk 0:00:05.2]} 70. f6 {[%clk
0:00:16.1]} 70... a5 {[%clk 0:00:05.9]} 71. f7 {[%clk 0:00:17]} 71... a4 {[%clk
0:00:06.3]} 72. f8=Q {[%clk 0:00:17.9]} 72... Kc2 {[%clk 0:00:05.4]} 73. Qa3
{[%clk 0:00:17.4]} 73... Kb1 {[%clk 0:00:04.6]} 74. Qxa4 {[%clk 0:00:17.8]} 1-0

[Event "Early-Titled-Tuesday-Blitz-February-06-2024"]
[Site "Chess.com"]
[Date "2024.02.06"]
[Round "9"]
[White "AlmasRakhmatullaev"]
[Black "iwanyu"]
[Result "1/2-1/2"]
[WhiteElo "2913"]
[BlackElo "2805"]
[TimeControl "180+1"]
[EndTime "9:46:02 PST"]
[Termination "Game drawn - insufficient material"]

1. e4 {[%clk 0:03:00.9]} 1... c6 {[%clk 0:02:59.1]} 2. d4 {[%clk 0:02:58.7]}
2... d5 {[%clk 0:03:00]} 3. exd5 {[%clk 0:02:59.6]} 3... cxd5 {[%clk 0:03:00.8]}
4. c4 {[%clk 0:03:00]} 4... Nf6 {[%clk 0:03:00.7]} 5. Nc3 {[%clk 0:02:58.8]}
5... Nc6 {[%clk 0:03:01.3]} 6. Nf3 {[%clk 0:02:58.9]} 6... Bg4 {[%clk
0:03:00.6]} 7. cxd5 {[%clk 0:02:57.5]} 7... Nxd5 {[%clk 0:03:01.5]} 8. Qb3
{[%clk 0:02:57.4]} 8... Bxf3 {[%clk 0:03:01]} 9. gxf3 {[%clk 0:02:57.4]} 9...
Nb6 {[%clk 0:03:01]} 10. d5 {[%clk 0:02:57.6]} 10... Nd4 {[%clk 0:03:00.1]} 11.
Bb5+ {[%clk 0:02:55.6]} 11... Nxb5 {[%clk 0:03:00.6]} 12. Nxb5 {[%clk
0:02:46.4]} 12... a6 {[%clk 0:02:39]} 13. Nc3 {[%clk 0:02:45.3]} 13... Nd7
{[%clk 0:02:39.7]} 14. Qxb7 {[%clk 0:02:38.5]} 14... g6 {[%clk 0:02:38.1]} 15.
d6 {[%clk 0:02:35.6]} 15... Rb8 {[%clk 0:02:25.1]} 16. Qe4 {[%clk 0:02:21.5]}
16... Bg7 {[%clk 0:02:14.8]} 17. dxe7 {[%clk 0:02:16.1]} 17... Qxe7 {[%clk
0:02:14.3]} 18. O-O {[%clk 0:02:09.3]} 18... Qxe4 {[%clk 0:02:12.7]} 19. fxe4
{[%clk 0:02:05.4]} 19... O-O {[%clk 0:02:11.8]} 20. Rd1 {[%clk 0:01:55.6]} 20...
Nc5 {[%clk 0:02:06.2]} 21. Be3 {[%clk 0:01:51.1]} 21... Ne6 {[%clk 0:01:46.4]}
22. Rab1 {[%clk 0:01:50.6]} 22... f5 {[%clk 0:01:38.4]} 23. exf5 {[%clk
0:01:49]} 23... Rxf5 {[%clk 0:01:37.8]} 24. Nd5 {[%clk 0:01:46.3]} 24... Bf8
{[%clk 0:01:27.3]} 25. Rbc1 {[%clk 0:01:31]} 25... Rb5 {[%clk 0:01:18.2]} 26.
Rc6 {[%clk 0:01:25]} 26... Rbxd5 {[%clk 0:01:17]} 27. Rxd5 {[%clk 0:01:24.6]}
27... Rxd5 {[%clk 0:01:17.9]} 28. Rxe6 {[%clk 0:01:25.2]} 28... Ra5 {[%clk
0:01:18.5]} 29. a3 {[%clk 0:01:20.2]} 29... Rb5 {[%clk 0:01:18.2]} 30. Rb6
{[%clk 0:01:10.2]} 30... Ra5 {[%clk 0:01:12.8]} 31. Rb8 {[%clk 0:01:04.5]} 31...
Kf7 {[%clk 0:01:13]} 32. Rb7+ {[%clk 0:01:04]} 32... Kg8 {[%clk 0:01:08.2]} 33.
Bd4 {[%clk 0:01:01.8]} 33... Rg5+ {[%clk 0:01:00.6]} 34. Kf1 {[%clk 0:01:01.5]}
34... a5 {[%clk 0:01:00.9]} 35. Bc3 {[%clk 0:00:50.6]} 35... Rh5 {[%clk
0:00:51.1]} 36. Ra7 {[%clk 0:00:43]} 36... Rxh2 {[%clk 0:00:50.9]} 37. Rxa5
{[%clk 0:00:43.1]} 37... h5 {[%clk 0:00:46.4]} 38. Kg1 {[%clk 0:00:37]} 38...
Rh4 {[%clk 0:00:45.5]} 39. f3 {[%clk 0:00:30.6]} 39... Kf7 {[%clk 0:00:40.5]}
40. Ra7+ {[%clk 0:00:30.4]} 40... Ke8 {[%clk 0:00:26.3]} 41. Kg2 {[%clk
0:00:28.2]} 41... Bd6 {[%clk 0:00:21.1]} 42. Ra6 {[%clk 0:00:22.9]} 42... Kd7
{[%clk 0:00:21.3]} 43. a4 {[%clk 0:00:16.9]} 43... Rh2+ {[%clk 0:00:20.9]} 44.
Kg1 {[%clk 0:00:17.2]} 44... Rc2 {[%clk 0:00:21.5]} 45. a5 {[%clk 0:00:16.8]}
45... h4 {[%clk 0:00:21.3]} 46. Ra7+ {[%clk 0:00:14.5]} 46... Kc6 {[%clk
0:00:20.9]} 47. Rh7 {[%clk 0:00:15.4]} 47... g5 {[%clk 0:00:17.8]} 48. a6 {[%clk
0:00:14.3]} 48... Rc1+ {[%clk 0:00:13.5]} 49. Kg2 {[%clk 0:00:13.3]} 49... Ra1
{[%clk 0:00:13.7]} 50. a7 {[%clk 0:00:09.7]} 50... Bc5 {[%clk 0:00:14]} 51. Rh6+
{[%clk 0:00:06.3]} 51... Kb7 {[%clk 0:00:09]} 52. Rh7+ {[%clk 0:00:06]} 52...
Kc6 {[%clk 0:00:09.1]} 53. f4 {[%clk 0:00:05.9]} 53... gxf4 {[%clk 0:00:08.6]}
54. Rxh4 {[%clk 0:00:05.9]} 54... Be3 {[%clk 0:00:07.8]} 55. Rh7 {[%clk
0:00:05.2]} 55... Bxa7 {[%clk 0:00:07.6]} 56. Kf3 {[%clk 0:00:05.7]} 56... Be3
{[%clk 0:00:07.7]} 57. Be5 {[%clk 0:00:04.6]} 57... Rf1+ {[%clk 0:00:07.2]} 58.
Ke4 {[%clk 0:00:05.1]} 58... Bc1 {[%clk 0:00:06.9]} 59. Rf7 {[%clk 0:00:04.3]}
59... Re1+ {[%clk 0:00:06.2]} 60. Kf5 {[%clk 0:00:03.6]} 60... f3 {[%clk
0:00:06.2]} 61. Bg3 {[%clk 0:00:04.3]} 61... Rg1 {[%clk 0:00:04.3]} 62. Kg4
{[%clk 0:00:03.9]} 62... Bxb2 {[%clk 0:00:02.8]} 63. Rxf3 {[%clk 0:00:03.9]}
63... Be5 {[%clk 0:00:03.4]} 64. Re3 {[%clk 0:00:04.3]} 64... Bxg3 {[%clk
0:00:03]} 65. Rxg3 {[%clk 0:00:05.2]} 65... Rxg3+ {[%clk 0:00:03.6]} 66. Kxg3
{[%clk 0:00:06.1]} 1/2-1/2

[Event "Early-Titled-Tuesday-Blitz-February-06-2024"]
[Site "Chess.com"]
[Date "2024.02.06"]
[Round "9"]
[White "Flaccidmoves"]
[Black "Lady_Nika"]
[Result "0-1"]
[WhiteElo "2455"]
[BlackElo "2592"]
[TimeControl "180+1"]
[EndTime "9:46:03 PST"]
[Termination "Lady_Nika won by resignation"]

1. c4 {[%clk 0:03:00.9]} 1... e6 {[%clk 0:02:55.2]} 2. d4 {[%clk 0:03:00.6]}
2... d5 {[%clk 0:02:55.1]} 3. Nc3 {[%clk 0:03:01.1]} 3... f5 {[%clk 0:02:54.4]}
4. g3 {[%clk 0:02:56.8]} 4... Nf6 {[%clk 0:02:54.5]} 5. Bg2 {[%clk 0:02:56.4]}
5... c6 {[%clk 0:02:54.6]} 6. Nh3 {[%clk 0:02:50.4]} 6... Bd6 {[%clk 0:02:54.4]}
7. Bf4 {[%clk 0:02:47.1]} 7... O-O {[%clk 0:02:53]} 8. Bxd6 {[%clk 0:02:39.2]}
8... Qxd6 {[%clk 0:02:53]} 9. Nf4 {[%clk 0:02:39.6]} 9... Nbd7 {[%clk
0:02:52.2]} 10. O-O {[%clk 0:02:37.7]} 10... Ne4 {[%clk 0:02:51.9]} 11. Qc2
{[%clk 0:02:13.9]} 11... Ndf6 {[%clk 0:02:47.4]} 12. Nd3 {[%clk 0:02:12.2]}
12... dxc4 {[%clk 0:02:42.8]} 13. Nf4 {[%clk 0:02:04.5]} 13... Qxd4 {[%clk
0:02:40.3]} 14. Rad1 {[%clk 0:02:00.6]} 14... Qc5 {[%clk 0:02:32.4]} 15. Nxe4
{[%clk 0:01:58.5]} 15... fxe4 {[%clk 0:02:31.9]} 16. Bxe4 {[%clk 0:01:57.9]}
16... e5 {[%clk 0:02:32.1]} 17. Ng2 {[%clk 0:01:47.5]} 17... Nxe4 {[%clk
0:02:25.7]} 18. Qxe4 {[%clk 0:01:48.4]} 18... Bf5 {[%clk 0:02:25.7]} 19. Qe3
{[%clk 0:01:46.7]} 19... Qb5 {[%clk 0:02:21.8]} 20. Qc3 {[%clk 0:01:40.5]} 20...
Rad8 {[%clk 0:02:02.2]} 21. Ne3 {[%clk 0:01:37.2]} 21... Bh3 {[%clk 0:01:59.4]}
22. Rfe1 {[%clk 0:01:32.9]} 22... Be6 {[%clk 0:01:57.5]} 23. Rc1 {[%clk
0:01:23.9]} 23... Qc5 {[%clk 0:01:57.4]} 24. b3 {[%clk 0:01:18.3]} 24... b5
{[%clk 0:01:48.6]} 25. bxc4 {[%clk 0:01:17.2]} 25... bxc4 {[%clk 0:01:43.7]} 26.
Rf1 {[%clk 0:01:16.4]} 26... Rd4 {[%clk 0:01:40]} 27. Nc2 {[%clk 0:01:08.6]}
27... Rg4 {[%clk 0:01:25.6]} 28. Ne3 {[%clk 0:01:07.3]} 28... Re4 {[%clk
0:01:23.7]} 29. Kg2 {[%clk 0:00:55.4]} 29... Bd5 {[%clk 0:01:18.6]} 30. Kg1
{[%clk 0:00:49.8]} 30... h5 {[%clk 0:01:07.6]} 31. h4 {[%clk 0:00:33.8]} 31...
Qd6 {[%clk 0:00:49.7]} 32. Rcd1 {[%clk 0:00:29.7]} 32... Qg6 {[%clk 0:00:40.4]}
33. Nxd5 {[%clk 0:00:22.8]} 33... cxd5 {[%clk 0:00:40.3]} 34. Rxd5 {[%clk
0:00:23.5]} 34... Rxh4 {[%clk 0:00:38.6]} 35. Rxe5 {[%clk 0:00:12]} 35... Rg4
{[%clk 0:00:37.6]} 36. Kh2 {[%clk 0:00:03.7]} 36... h4 {[%clk 0:00:37.3]} 37.
Re3 {[%clk 0:00:03]} 37... hxg3+ {[%clk 0:00:36.3]} 38. Rxg3 {[%clk 0:00:03.9]}
38... Rh4+ {[%clk 0:00:34.8]} 39. Kg2 {[%clk 0:00:04.2]} 39... Qc6+ {[%clk
0:00:34.3]} 40. f3 {[%clk 0:00:04]} 40... Qh6 {[%clk 0:00:33.7]} 41. Rg1 {[%clk
0:00:03.6]} 41... Rf7 {[%clk 0:00:23.7]} 42. Kf1 {[%clk 0:00:04.2]} 42... Rd7
{[%clk 0:00:20.9]} 43. R1g2 {[%clk 0:00:04.8]} 43... Rh1+ {[%clk 0:00:20.5]} 44.
Kf2 {[%clk 0:00:05.3]} 44... Qb6+ {[%clk 0:00:19.4]} 45. e3 {[%clk 0:00:05.5]}
45... Qh6 {[%clk 0:00:18.2]} 46. Ke2 {[%clk 0:00:05]} 46... Rh2 {[%clk
0:00:11.7]} 47. Qxc4+ {[%clk 0:00:05.3]} 47... Kh7 {[%clk 0:00:09.6]} 48. Qc3
{[%clk 0:00:06]} 48... Rxg2+ {[%clk 0:00:08.6]} 49. Rxg2 {[%clk 0:00:06.9]}
49... Qa6+ {[%clk 0:00:08.8]} 50. Kf2 {[%clk 0:00:06.9]} 50... Qxa2+ {[%clk
0:00:09]} 51. Kg1 {[%clk 0:00:06.4]} 51... Qe6 {[%clk 0:00:08.3]} 52. Rh2+
{[%clk 0:00:06.3]} 52... Kg8 {[%clk 0:00:08.4]} 53. Qc8+ {[%clk 0:00:06.2]}
53... Kf7 {[%clk 0:00:08.7]} 54. Rg2 {[%clk 0:00:06.7]} 54... Qxe3+ {[%clk
0:00:08.5]} 55. Kh2 {[%clk 0:00:07.4]} 55... Qf4+ {[%clk 0:00:08.6]} 56. Kh3
{[%clk 0:00:07.4]} 56... Qf5+ {[%clk 0:00:08.8]} 57. Kh2 {[%clk 0:00:07.5]}
57... Qe5+ {[%clk 0:00:08.8]} 58. Kh3 {[%clk 0:00:07.3]} 58... Qe6+ {[%clk
0:00:08.9]} 59. Kh2 {[%clk 0:00:07.5]} 59... a5 {[%clk 0:00:08.4]} 60. Qb8
{[%clk 0:00:07.1]} 60... Qd6+ {[%clk 0:00:08.6]} 61. Qxd6 {[%clk 0:00:07.1]}
61... Rxd6 {[%clk 0:00:09.5]} 62. Rg5 {[%clk 0:00:07.8]} 62... Ra6 {[%clk
0:00:08.5]} 63. Rg2 {[%clk 0:00:08]} 63... a4 {[%clk 0:00:08.8]} 64. Ra2 {[%clk
0:00:08.4]} 64... a3 {[%clk 0:00:09.3]} 65. Kg3 {[%clk 0:00:09]} 65... Ke6
{[%clk 0:00:09.8]} 66. Kf4 {[%clk 0:00:09.6]} 66... Kd5 {[%clk 0:00:10.2]} 67.
Kg5 {[%clk 0:00:08.9]} 67... Kc4 {[%clk 0:00:10.5]} 68. f4 {[%clk 0:00:09.2]}
68... Kb3 {[%clk 0:00:10.9]} 69. Rh2 {[%clk 0:00:09.5]} 69... a2 {[%clk
0:00:11.1]} 70. Rh1 {[%clk 0:00:06.1]} 70... a1=Q {[%clk 0:00:11.4]} 71. Rxa1
{[%clk 0:00:05.6]} 71... Rxa1 {[%clk 0:00:12.3]} 72. Kg6 {[%clk 0:00:06.5]}
72... Ra7 {[%clk 0:00:12.9]} 0-1

[Event "Early-Titled-Tuesday-Blitz-February-06-2024"]
[Site "Chess.com"]
[Date "2024.02.06"]
[Round "9"]
[White "Hikaru"]
[Black "wonderfultime"]
[Result "1-0"]
[WhiteElo "3307"]
[BlackElo "3059"]
[TimeControl "180+1"]
[EndTime "9:46:07 PST"]
[Termination "Hikaru won by resignation"]

1. e4 {[%clk 0:03:00.9]} 1... e5 {[%clk 0:03:00.4]} 2. Bc4 {[%clk 0:03:00.7]}
2... Nf6 {[%clk 0:03:00.8]} 3. d3 {[%clk 0:03:01.3]} 3... c6 {[%clk 0:03:01.5]}
4. Nf3 {[%clk 0:03:00.7]} 4... d5 {[%clk 0:03:02.3]} 5. Bb3 {[%clk 0:03:01]}
5... Bd6 {[%clk 0:03:03.1]} 6. Nc3 {[%clk 0:03:00.3]} 6... h6 {[%clk 0:03:01.6]}
7. exd5 {[%clk 0:02:51.1]} 7... cxd5 {[%clk 0:03:00.7]} 8. Bxd5 {[%clk
0:02:51.1]} 8... Nxd5 {[%clk 0:03:00.5]} 9. Nxd5 {[%clk 0:02:52]} 9... Be6
{[%clk 0:03:00.4]} 10. Nc3 {[%clk 0:02:52.1]} 10... Nc6 {[%clk 0:02:58.5]} 11.
Be3 {[%clk 0:02:39.1]} 11... O-O {[%clk 0:02:42.7]} 12. d4 {[%clk 0:02:38.4]}
12... exd4 {[%clk 0:02:36.8]} 13. Nxd4 {[%clk 0:02:38.7]} 13... Nxd4 {[%clk
0:01:53.7]} 14. Qxd4 {[%clk 0:02:39.6]} 14... Qb8 {[%clk 0:01:54]} 15. f4 {[%clk
0:02:21.7]} 15... Be7 {[%clk 0:01:41.5]} 16. O-O {[%clk 0:02:14.7]} 16... Bf6
{[%clk 0:01:39.8]} 17. Qe4 {[%clk 0:02:13.5]} 17... Re8 {[%clk 0:01:38.1]} 18.
Qf3 {[%clk 0:02:07.2]} 18... Qc8 {[%clk 0:01:31.3]} 19. f5 {[%clk 0:01:41.8]}
19... Bc4 {[%clk 0:01:07.9]} 20. Rfe1 {[%clk 0:01:33.7]} 20... Re5 {[%clk
0:01:07.7]} 21. g4 {[%clk 0:01:33.2]} 21... b5 {[%clk 0:00:58.8]} 22. Bf4 {[%clk
0:01:15.1]} 22... Rxe1+ {[%clk 0:00:59]} 23. Rxe1 {[%clk 0:01:16]} 23... b4
{[%clk 0:00:48.3]} 24. Ne4 {[%clk 0:01:15.4]} 24... Bd4+ {[%clk 0:00:43.7]} 25.
Be3 {[%clk 0:01:13.5]} 25... Bxe3+ {[%clk 0:00:41.8]} 26. Rxe3 {[%clk
0:01:12.8]} 26... Bd5 {[%clk 0:00:37.9]} 27. Nf6+ {[%clk 0:01:10]} 27... gxf6
{[%clk 0:00:36.5]} 28. Qxd5 {[%clk 0:01:10.9]} 28... Qf8 {[%clk 0:00:28.9]} 29.
Qd4 {[%clk 0:00:38]} 29... Kg7 {[%clk 0:00:28.5]} 30. Kf2 {[%clk 0:00:28.8]}
30... Rd8 {[%clk 0:00:23.8]} 31. Qe4 {[%clk 0:00:28.8]} 31... Qd6 {[%clk
0:00:21.9]} 32. Kg2 {[%clk 0:00:26.2]} 32... Qd1 {[%clk 0:00:21.1]} 33. Re2
{[%clk 0:00:21.5]} 33... Rd4 {[%clk 0:00:21.4]} 34. Qf3 {[%clk 0:00:20.6]} 34...
Qc1 {[%clk 0:00:21.1]} 35. Qe3 {[%clk 0:00:18.5]} 35... Rxg4+ {[%clk 0:00:20.9]}
36. Kh3 {[%clk 0:00:19]} 36... Qxe3+ {[%clk 0:00:18.1]} 37. Rxe3 {[%clk
0:00:19.9]} 37... Rc4 {[%clk 0:00:17.3]} 38. c3 {[%clk 0:00:19.9]} 38... bxc3
{[%clk 0:00:17.3]} 39. Rxc3 {[%clk 0:00:20.8]} 39... Ra4 {[%clk 0:00:16]} 40. a3
{[%clk 0:00:21]} 40... h5 {[%clk 0:00:16.1]} 41. Kg3 {[%clk 0:00:21.6]} 41...
h4+ {[%clk 0:00:15.4]} 42. Kf3 {[%clk 0:00:22.2]} 42... Kh6 {[%clk 0:00:16]} 43.
b4 {[%clk 0:00:22.9]} 43... Kg5 {[%clk 0:00:16.5]} 44. Ke4 {[%clk 0:00:23.5]}
44... Ra6 {[%clk 0:00:15.3]} 45. Rb3 {[%clk 0:00:23.7]} 45... Rc6 {[%clk
0:00:13.8]} 46. a4 {[%clk 0:00:23.9]} 46... Rc2 {[%clk 0:00:13.4]} 47. h3 {[%clk
0:00:23.3]} 47... Re2+ {[%clk 0:00:13.8]} 48. Kd5 {[%clk 0:00:23.9]} 48... Rg2
{[%clk 0:00:11.4]} 49. a5 {[%clk 0:00:23.3]} 49... Rg3 {[%clk 0:00:12]} 50. Kc4
{[%clk 0:00:23.8]} 50... Kxf5 {[%clk 0:00:08.9]} 51. b5 {[%clk 0:00:24.2]} 51...
Ke5 {[%clk 0:00:07.3]} 52. b6 {[%clk 0:00:21.4]} 52... axb6 {[%clk 0:00:08.2]}
53. a6 {[%clk 0:00:20.5]} 53... Rg8 {[%clk 0:00:08.6]} 54. Rxb6 {[%clk
0:00:18.2]} 54... f5 {[%clk 0:00:08.8]} 55. a7 {[%clk 0:00:17.6]} 55... Ra8
{[%clk 0:00:09.4]} 56. Ra6 {[%clk 0:00:18.3]} 56... f4 {[%clk 0:00:09.5]} 57.
Kd3 {[%clk 0:00:18.6]} 57... Kd5 {[%clk 0:00:07.5]} 58. Ke2 {[%clk 0:00:18.8]}
58... Ke4 {[%clk 0:00:07.6]} 59. Ra4+ {[%clk 0:00:18.4]} 59... Kd5 {[%clk
0:00:07.6]} 60. Kf3 {[%clk 0:00:19.3]} 60... Kc6 {[%clk 0:00:08.3]} 61. Kxf4
{[%clk 0:00:19.5]} 61... Kb7 {[%clk 0:00:09]} 62. Kg5 {[%clk 0:00:19.5]} 62...
Rg8+ {[%clk 0:00:08.5]} 63. Kxh4 {[%clk 0:00:19]} 63... Ka8 {[%clk 0:00:08.9]}
64. Kh5 {[%clk 0:00:19.7]} 64... f5 {[%clk 0:00:09.6]} 65. h4 {[%clk 0:00:20.3]}
65... Rg1 {[%clk 0:00:05.2]} 66. Rf4 {[%clk 0:00:19.9]} 66... Kxa7 {[%clk
0:00:05]} 67. Rxf5 {[%clk 0:00:20.5]} 67... Kb7 {[%clk 0:00:05]} 68. Rg5 {[%clk
0:00:20.9]} 68... Rh1 {[%clk 0:00:05.3]} 69. Rc5 {[%clk 0:00:21]} 69... Kb6
{[%clk 0:00:05.6]} 70. Rc2 {[%clk 0:00:21.7]} 70... Rg1 {[%clk 0:00:06.1]} 71.
Kh6 {[%clk 0:00:22]} 71... Rg8 {[%clk 0:00:03.9]} 72. h5 {[%clk 0:00:22.2]}
72... Rg1 {[%clk 0:00:04.6]} 73. Kh7 {[%clk 0:00:22.4]} 73... Kb7 {[%clk
0:00:05.2]} 74. h6 {[%clk 0:00:22.7]} 74... Rg3 {[%clk 0:00:05.9]} 75. Kh8
{[%clk 0:00:22.5]} 75... Rg1 {[%clk 0:00:06.3]} 76. h7 {[%clk 0:00:22.9]} 76...
Rg3 {[%clk 0:00:07.2]} 77. Rf2 {[%clk 0:00:22.6]} 77... Kc7 {[%clk 0:00:07.2]}
78. Rf8 {[%clk 0:00:23.2]} 78... Kd7 {[%clk 0:00:07.6]} 79. Rg8 {[%clk
0:00:23.9]} 79... Rh3 {[%clk 0:00:08.1]} 80. Kg7 {[%clk 0:00:24.5]} 80... Rg3+
{[%clk 0:00:04.6]} 81. Kf6 {[%clk 0:00:24.4]} 1-0